[Event "Championnat du monde jeunes U10"]
[Date "2024.11.15"]
[White "Chen, Chicheng Leon"]
[Black "Megagiannis, Maximos"]
[WhiteElo "1987"]
[BlackElo "1682"]
[Round "1.17"]
[Result "1-0"]
[TimeControl "5400+30"]

1. e4 {[%clk 1:30:58]} 1... c5 {[%clk 1:30:49]} 2. Nf3 {[%clk 1:31:24]} 2... e6
{[%clk 1:31:09]} 3. d4 {[%clk 1:31:40]} 3... cxd4 {[%clk 1:31:32]} 4. Nxd4
{[%clk 1:31:55]} 4... Nc6 {[%clk 1:31:53]} 5. Nc3 {[%clk 1:32:15]} 5... Qc7
{[%clk 1:32:17]} 6. Be3 {[%clk 1:32:05]} 6... a6 {[%clk 1:32:38]} 7. Qd2 {[%clk
1:30:57]} 7... Nf6 {[%clk 1:32:54]} 8. f4 {[%clk 1:30:47]} 8... Bb4 {[%clk
1:33:14]} 9. Bd3 {[%clk 1:31:11]} 9... b5 {[%clk 1:33:27]} 10. a3 {[%clk
1:28:22]} 10... Be7 {[%clk 1:33:43]} 11. Nxc6 {[%clk 1:19:26]} 11... dxc6 {[%clk
1:34:02]} 12. h3 {[%clk 1:15:16]} 12... c5 {[%clk 1:25:45]} 13. e5 {[%clk
1:10:42]} 13... b4 {[%clk 1:20:46]} 14. exf6 {[%clk 1:03:11]} 14... bxc3 {[%clk
1:20:58]} 15. Qxc3 {[%clk 1:02:50]} 15... Bxf6 {[%clk 1:19:36]} 16. Qxc5 {[%clk
1:02:49]} 16... Qxc5 {[%clk 1:19:18]} 17. Bxc5 {[%clk 1:03:15]} 17... Rb8 {[%clk
1:14:48]} 18. Rb1 {[%clk 0:57:56]} 18... Bxb2 {[%clk 0:57:08]} 19. Kd2 {[%clk
0:55:52]} 19... Rb7 {[%clk 0:49:27]} 20. c3 {[%clk 0:50:22]} 20... Bd7 {[%clk
0:31:22]} 21. Bb4 {[%clk 0:48:19]} 21... Bc6 {[%clk 0:29:11]} 22. Bxa6 {[%clk
0:41:23]} 22... Rd7+ {[%clk 0:24:58]} 23. Ke3 {[%clk 0:41:15]} 23... Bxg2 {[%clk
0:24:02]} 24. Rh2 {[%clk 0:40:23]} 1-0

[Variant "Standard"]
[Site "Europe Echecs"]

[Event "Championnat du monde jeunes U10"]
[Date "2024.11.15"]
[White "Della Penna, Leonardo"]
[Black "Advik Amit Agrawal"]
[WhiteElo "1675"]
[BlackElo "1982"]
[Round "1.18"]
[Result "0-1"]
[TimeControl "5400+30"]

1. e4 {[%clk 1:30:51]} 1... e6 {[%clk 1:30:26]} 2. d4 {[%clk 1:31:13]} 2... d5
{[%clk 1:30:47]} 3. Nc3 {[%clk 1:31:13]} 3... dxe4 {[%clk 1:30:59]} 4. Nxe4
{[%clk 1:31:20]} 4... Nd7 {[%clk 1:30:47]} 5. Nf3 {[%clk 1:31:15]} 5... Ngf6
{[%clk 1:31:10]} 6. Nxf6+ {[%clk 1:30:59]} 6... Nxf6 {[%clk 1:31:17]} 7. c3
{[%clk 1:30:21]} 7... Be7 {[%clk 1:31:01]} 8. Bd3 {[%clk 1:29:41]} 8... O-O
{[%clk 1:31:18]} 9. O-O {[%clk 1:29:40]} 9... b6 {[%clk 1:31:28]} 10. h3 {[%clk
1:24:44]} 10... Bb7 {[%clk 1:31:34]} 11. Qe2 {[%clk 1:22:29]} 11... c5 {[%clk
1:30:56]} 12. Rd1 {[%clk 1:21:53]} 12... Qc7 {[%clk 1:30:56]} 13. Bg5 {[%clk
1:19:52]} 13... Rac8 {[%clk 1:29:19]} 14. Bh4 {[%clk 1:17:04]} 14... c4 {[%clk
1:28:37]} 15. Bc2 {[%clk 1:16:41]} 15... Bd5 {[%clk 1:28:32]} 16. Bg3 {[%clk
1:15:55]} 16... Qb7 {[%clk 1:28:50]} 17. Re1 {[%clk 1:10:59]} 17... b5 {[%clk
1:27:01]} 18. a4 {[%clk 1:05:42]} 18... b4 {[%clk 1:26:51]} 19. Bh4 {[%clk
1:01:54]} 19... Rfe8 {[%clk 1:20:33]} 20. Bxf6 {[%clk 1:00:01]} 20... Bxf6
{[%clk 1:19:19]} 21. Be4 {[%clk 1:00:00]} 21... a5 {[%clk 1:17:35]} 22. Bxd5
{[%clk 0:59:41]} 22... Qxd5 {[%clk 1:17:51]} 23. Qe4 {[%clk 0:59:19]} 23... Qxe4
{[%clk 1:11:24]} 24. Rxe4 {[%clk 0:59:32]} 24... Be7 {[%clk 1:11:45]} 25. Rae1
{[%clk 0:58:55]} 25... Kf8 {[%clk 1:11:07]} 26. Ne5 {[%clk 0:57:52]} 26... Bd6
{[%clk 1:11:19]} 27. Nd7+ {[%clk 0:56:54]} 27... Ke7 {[%clk 1:09:57]} 28. Nb6
{[%clk 0:56:09]} 28... Rc6 {[%clk 1:10:17]} 29. Nd5+ {[%clk 0:54:54]} 29... Kd7
{[%clk 1:09:03]} 30. R4e2 {[%clk 0:50:06]} 30... Rb8 {[%clk 1:07:19]} 31. Ne3
{[%clk 0:48:55]} 31... bxc3 {[%clk 1:07:43]} 32. bxc3 {[%clk 0:48:52]} 32... Rb3
{[%clk 1:08:00]} 33. Ng4 {[%clk 0:45:12]} 33... f6 {[%clk 1:06:17]} 34. Kh1
{[%clk 0:43:03]} 34... h5 {[%clk 1:05:59]} 35. Ne3 {[%clk 0:41:23]} 35... Rxc3
{[%clk 1:05:45]} 36. d5 {[%clk 0:39:26]} 36... exd5 {[%clk 1:05:24]} 37. Nxd5
{[%clk 0:39:38]} 37... Rd3 {[%clk 1:05:38]} 38. Ne7 {[%clk 0:39:04]} 38... Rc5
{[%clk 1:06:00]} 39. Ng6 {[%clk 0:37:59]} 39... c3 {[%clk 1:06:04]} 40. Rc1
{[%clk 0:37:01]} 40... c2 {[%clk 1:06:04]} 41. Ree1 {[%clk 0:36:58]} 41... Rd2
{[%clk 1:05:58]} 42. Kg1 {[%clk 0:37:00]} 42... Rc4 {[%clk 1:06:16]} 0-1

[Variant "Standard"]
[Site "Europe Echecs"]

[Event "Championnat du monde jeunes U10"]
[Date "2024.11.15"]
[White "Anand, Tsogtbileg"]
[Black "Golya, David"]
[WhiteElo "1974"]
[BlackElo "1672"]
[Round "1.19"]
[Result "1-0"]
[TimeControl "5400+30"]

1. e4 {[%clk 1:30:25]} 1... c5 {[%clk 1:30:52]} 2. Nf3 {[%clk 1:30:30]} 2... Nc6
{[%clk 1:31:16]} 3. d4 {[%clk 1:30:30]} 3... cxd4 {[%clk 1:31:41]} 4. Nxd4
{[%clk 1:30:30]} 4... e5 {[%clk 1:32:04]} 5. Nb5 {[%clk 1:30:20]} 5... d6 {[%clk
1:32:25]} 6. N1c3 {[%clk 1:30:06]} 6... a6 {[%clk 1:32:46]} 7. Na3 {[%clk
1:30:20]} 7... Be7 {[%clk 1:32:46]} 8. Nd5 {[%clk 1:26:25]} 8... Nf6 {[%clk
1:32:13]} 9. Nxf6+ {[%clk 1:23:30]} 9... Bxf6 {[%clk 1:32:26]} 10. Bc4 {[%clk
1:22:32]} 10... O-O {[%clk 1:28:17]} 11. O-O {[%clk 1:21:42]} 11... Be7 {[%clk
1:19:00]} 12. c3 {[%clk 1:17:48]} 12... Be6 {[%clk 1:13:51]} 13. Bd5 {[%clk
1:16:38]} 13... Rc8 {[%clk 1:05:02]} 14. Bxe6 {[%clk 1:11:20]} 14... fxe6 {[%clk
1:05:18]} 15. Qb3 {[%clk 1:11:46]} 15... Qd7 {[%clk 0:44:18]} 16. Nc4 {[%clk
1:12:06]} 16... Rce8 {[%clk 0:29:05]} 17. Nb6 {[%clk 1:11:50]} 17... Qd8 {[%clk
0:28:10]} 18. Qxe6+ {[%clk 1:10:39]} 18... Rf7 {[%clk 0:27:58]} 19. Nd5 {[%clk
1:10:20]} 19... Bh4 {[%clk 0:26:58]} 20. Qg4 {[%clk 1:09:56]} 20... Ref8 {[%clk
0:22:03]} 21. Be3 {[%clk 1:09:41]} 21... Bf6 {[%clk 0:20:48]} 22. Rfd1 {[%clk
1:07:29]} 22... Ne7 {[%clk 0:19:12]} 23. Nb6 {[%clk 1:01:18]} 23... Ng6 {[%clk
0:14:29]} 24. Qe6 {[%clk 1:00:41]} 24... Be7 {[%clk 0:13:27]} 25. Nd5 {[%clk
0:56:15]} 25... Kh8 {[%clk 0:12:27]} 26. Nxe7 {[%clk 0:56:21]} 26... Qxe7 {[%clk
0:11:24]} 27. Qxe7 {[%clk 0:56:06]} 27... Rxe7 {[%clk 0:11:09]} 28. Rxd6 {[%clk
0:56:23]} 28... Ree8 {[%clk 0:10:30]} 29. Rd7 {[%clk 0:56:38]} 29... Re7 {[%clk
0:10:35]} 30. Rxe7 {[%clk 0:55:45]} 30... Nxe7 {[%clk 0:10:58]} 31. Bc5 {[%clk
0:56:13]} 31... Re8 {[%clk 0:11:10]} 32. Rd1 {[%clk 0:56:36]} 32... h6 {[%clk
0:11:29]} 33. Rd7 {[%clk 0:56:59]} 33... Ng6 {[%clk 0:09:32]} 34. g3 {[%clk
0:56:59]} 34... b5 {[%clk 0:09:02]} 35. Rd6 {[%clk 0:57:23]} 1-0

[Variant "Standard"]
[Site "Europe Echecs"]

[Event "Championnat du monde jeunes U10"]
[Date "2024.11.15"]
[White "Iliev, Stoyan"]
[Black "Ling, Chenxuan"]
[WhiteElo "1671"]
[BlackElo "1967"]
[Round "1.20"]
[Result "0-1"]
[TimeControl "5400+30"]

1. e4 {[%clk 1:30:55]} 1... e6 {[%clk 1:30:01]} 2. d4 {[%clk 1:31:09]} 2... d5
{[%clk 1:30:20]} 3. e5 {[%clk 1:31:34]} 3... c5 {[%clk 1:30:46]} 4. c3 {[%clk
1:31:59]} 4... Nc6 {[%clk 1:31:12]} 5. Nf3 {[%clk 1:32:21]} 5... Bd7 {[%clk
1:31:33]} 6. Bd3 {[%clk 1:32:25]} 6... Qb6 {[%clk 1:31:44]} 7. Bc2 {[%clk
1:32:35]} 7... cxd4 {[%clk 1:31:33]} 8. cxd4 {[%clk 1:32:59]} 8... Rc8 {[%clk
1:31:05]} 9. Nc3 {[%clk 1:32:49]} 9... Nb4 {[%clk 1:20:24]} 10. O-O {[%clk
1:28:18]} 10... Nxc2 {[%clk 1:19:47]} 11. Qxc2 {[%clk 1:28:43]} 11... Ne7 {[%clk
1:20:09]} 12. Rd1 {[%clk 1:24:24]} 12... Nf5 {[%clk 1:18:46]} 13. g4 {[%clk
1:15:30]} 13... Ne7 {[%clk 1:18:48]} 14. Ng5 {[%clk 1:15:26]} 14... h5 {[%clk
1:15:26]} 15. h3 {[%clk 1:14:42]} 15... hxg4 {[%clk 1:13:20]} 16. hxg4 {[%clk
1:13:25]} 16... Nc6 {[%clk 1:11:23]} 17. Qd3 {[%clk 1:09:24]} 17... Be7 {[%clk
1:10:16]} 18. Nf3 {[%clk 1:06:04]} 18... Bb4 {[%clk 0:56:20]} 19. Bd2 {[%clk
0:59:03]} 19... Na5 {[%clk 0:43:30]} 20. b3 {[%clk 0:55:50]} 20... Bxc3 {[%clk
0:32:16]} 21. Bxc3 {[%clk 0:55:33]} 21... Nc6 {[%clk 0:32:45]} 22. Kg2 {[%clk
0:54:20]} 22... Ne7 {[%clk 0:27:37]} 23. Rh1 {[%clk 0:52:50]} 23... Rxh1 {[%clk
0:26:37]} 24. Rxh1 {[%clk 0:53:15]} 24... Ng6 {[%clk 0:27:02]} 25. Kg3 {[%clk
0:50:22]} 25... Bb5 {[%clk 0:26:25]} 26. Qe3 {[%clk 0:48:58]} 26... Qc7 {[%clk
0:23:30]} 27. Bb4 {[%clk 0:49:02]} 27... a5 {[%clk 0:23:39]} 28. Bd6 {[%clk
0:49:19]} 28... Qc3 {[%clk 0:23:59]} 29. Ng5 {[%clk 0:32:41]} 29... Qb2 {[%clk
0:18:42]} 30. f3 {[%clk 0:29:49]} 30... Rc3 {[%clk 0:16:07]} 31. Qe1 {[%clk
0:27:13]} 31... Rc2 {[%clk 0:15:16]} 32. Qg1 {[%clk 0:26:22]} 32... Re2 {[%clk
0:11:02]} 33. Qc1 {[%clk 0:20:07]} 33... Rg2+ {[%clk 0:11:24]} 34. Kh3 {[%clk
0:20:31]} 34... Rc2 35. Qg1 Rc8 0-1

[Variant "Standard"]
[Site "Europe Echecs"]

[Event "Championnat du monde jeunes U10"]
[Date "2024.11.15"]
[White "Chakhalov, Mikael"]
[Black "Barsov, Mikhail"]
[WhiteElo "1962"]
[BlackElo "1668"]
[Round "1.21"]
[Result "1-0"]
[TimeControl "5400+30"]

1. c4 {[%clk 1:30:56]} 1... e5 {[%clk 1:30:35]} 2. g3 {[%clk 1:31:15]} 2... Nf6
{[%clk 1:31:01]} 3. Bg2 {[%clk 1:31:37]} 3... d5 {[%clk 1:31:21]} 4. cxd5 {[%clk
1:32:01]} 4... Nxd5 {[%clk 1:31:45]} 5. Nc3 {[%clk 1:32:21]} 5... Nb6 {[%clk
1:32:11]} 6. Nf3 {[%clk 1:32:28]} 6... Nc6 {[%clk 1:32:35]} 7. a3 {[%clk
1:32:14]} 7... a5 {[%clk 1:31:44]} 8. d3 {[%clk 1:32:29]} 8... Be7 {[%clk
1:26:15]} 9. O-O {[%clk 1:30:47]} 9... O-O {[%clk 1:24:16]} 10. Be3 {[%clk
1:29:17]} 10... Be6 {[%clk 1:21:26]} 11. Ne4 {[%clk 1:25:31]} 11... Nd5 {[%clk
1:18:56]} 12. Bc5 {[%clk 1:23:06]} 12... h6 {[%clk 1:13:05]} 13. Rc1 {[%clk
1:21:15]} 13... f5 {[%clk 0:53:10]} 14. Bxe7 {[%clk 1:20:55]} 14... Qxe7 {[%clk
0:50:17]} 15. Nc5 {[%clk 1:21:03]} 15... b6 {[%clk 0:35:32]} 16. Nxe6 {[%clk
1:20:21]} 16... Qxe6 {[%clk 0:33:55]} 17. Qb3 {[%clk 1:18:19]} 17... e4 {[%clk
0:31:00]} 18. dxe4 {[%clk 1:04:11]} 18... fxe4 {[%clk 0:31:11]} 19. Nd2 {[%clk
1:04:28]} 19... Nd4 {[%clk 0:30:55]} 20. Qc4 {[%clk 1:04:47]} 20... c5 {[%clk
0:30:43]} 21. Bxe4 {[%clk 0:59:37]} 21... Rad8 {[%clk 0:30:45]} 22. e3 {[%clk
0:51:13]} 22... b5 {[%clk 0:30:31]} 23. Qd3 {[%clk 0:50:33]} 23... Nf5 {[%clk
0:28:39]} 24. Bxf5 {[%clk 0:45:31]} 24... Qxf5 {[%clk 0:26:39]} 25. Qxf5 {[%clk
0:45:00]} 25... Rxf5 {[%clk 0:26:50]} 26. e4 {[%clk 0:45:26]} 26... Nf4 {[%clk
0:21:30]} 27. gxf4 {[%clk 0:44:48]} 27... Rxf4 {[%clk 0:21:52]} 28. Rfd1 {[%clk
0:44:57]} 28... c4 {[%clk 0:21:43]} 29. a4 {[%clk 0:35:08]} 29... bxa4 {[%clk
0:19:15]} 30. Rxc4 {[%clk 0:35:18]} 30... a3 {[%clk 0:19:39]} 31. bxa3 {[%clk
0:34:53]} 31... Rg4+ {[%clk 0:18:22]} 32. Kf1 {[%clk 0:34:25]} 32... Rh4 {[%clk
0:17:29]} 33. Ke2 {[%clk 0:27:25]} 33... Rxh2 {[%clk 0:17:35]} 34. Nf1 {[%clk
0:27:06]} 34... Rxf2+ {[%clk 0:17:41]} 35. Kxf2 {[%clk 0:27:34]} 35... Rxd1
{[%clk 0:18:03]} 36. Ra4 {[%clk 0:27:50]} 36... Rd7 {[%clk 0:16:56]} 37. Rxa5
{[%clk 0:28:10]} 37... g6 {[%clk 0:16:56]} 38. Ne3 {[%clk 0:28:18]} 38... Rf7+
{[%clk 0:17:18]} 39. Kg3 {[%clk 0:28:35]} 39... Re7 {[%clk 0:17:38]} 40. Nd5
{[%clk 0:24:25]} 40... Re6 {[%clk 0:14:44]} 41. Kf3 {[%clk 0:24:09]} 41... g5
{[%clk 0:14:38]} 42. Ne3 {[%clk 0:23:23]} 42... Rf6+ {[%clk 0:14:22]} 43. Nf5
{[%clk 0:22:39]} 43... h5 {[%clk 0:14:06]} 44. Kg3 {[%clk 0:21:07]} 44... Re6
{[%clk 0:13:44]} 45. Ra4 {[%clk 0:21:05]} 45... Kf7 {[%clk 0:11:44]} 46. Rb4
{[%clk 0:20:53]} 46... Ra6 {[%clk 0:10:58]} 47. a4 {[%clk 0:21:16]} 47... Kf6
{[%clk 0:11:16]} 48. Kf3 {[%clk 0:20:43]} 48... Ke5 {[%clk 0:10:34]} 49. Rb5+
{[%clk 0:20:56]} 49... Kf6 {[%clk 0:10:55]} 50. a5 {[%clk 0:21:19]} 50... Kf7
{[%clk 0:10:33]} 51. e5 {[%clk 0:21:15]} 51... Re6 {[%clk 0:09:50]} 52. Nd6+
{[%clk 0:20:16]} 52... Ke7 {[%clk 0:09:24]} 53. a6 {[%clk 0:20:39]} 53... g4+
{[%clk 0:09:44]} 54. Kg3 {[%clk 0:21:02]} 54... Kd7 {[%clk 0:09:00]} 55. a7
{[%clk 0:21:30]} 55... Rh6 {[%clk 0:09:15]} 56. a8=Q {[%clk 0:21:28]} 56... h4+
{[%clk 0:09:40]} 57. Kxg4 {[%clk 0:21:50]} 57... h3 {[%clk 0:10:02]} 58. Qe8+
{[%clk 0:22:00]} 58... Kc7 {[%clk 0:10:22]} 59. Rb7# 1-0

[Variant "Standard"]
[Site "Europe Echecs"]

[Event "Championnat du monde jeunes U10"]
[Date "2024.11.15"]
[White "Bartash, Saveli"]
[Black "Zhauynbay, Alimzhan"]
[WhiteElo "1661"]
[BlackElo "1953"]
[Round "1.22"]
[Result "0-1"]
[TimeControl "5400+30"]

1. e4 {[%clk 1:30:54]} 1... c5 {[%clk 1:30:36]} 2. Nf3 {[%clk 1:31:17]} 2... d6
{[%clk 1:30:55]} 3. d4 {[%clk 1:31:28]} 3... cxd4 {[%clk 1:31:20]} 4. Nxd4
{[%clk 1:31:51]} 4... Nf6 {[%clk 1:31:47]} 5. Bd3 {[%clk 1:32:10]} 5... g6
{[%clk 1:28:22]} 6. O-O {[%clk 1:31:57]} 6... Bg7 {[%clk 1:28:40]} 7. c4 {[%clk
1:31:58]} 7... O-O {[%clk 1:28:15]} 8. Nc3 {[%clk 1:32:03]} 8... Nbd7 {[%clk
1:26:52]} 9. Nb3 {[%clk 1:30:10]} 9... Ne5 {[%clk 1:21:09]} 10. Be2 {[%clk
1:29:59]} 10... Bd7 {[%clk 1:11:51]} 11. f4 {[%clk 1:27:50]} 11... Nc6 {[%clk
1:09:57]} 12. Be3 {[%clk 1:27:11]} 12... b6 {[%clk 1:09:09]} 13. Rc1 {[%clk
1:25:59]} 13... Rc8 {[%clk 1:07:51]} 14. Bf3 {[%clk 1:24:42]} 14... Ne8 {[%clk
1:04:18]} 15. Qe2 {[%clk 1:22:03]} 15... Nc7 {[%clk 1:02:54]} 16. Rfd1 {[%clk
1:19:14]} 16... Ne6 {[%clk 0:58:59]} 17. g4 {[%clk 1:15:02]} 17... g5 {[%clk
0:57:13]} 18. fxg5 {[%clk 1:12:19]} 18... Ne5 {[%clk 0:56:08]} 19. Nd5 {[%clk
1:12:06]} 19... Nxf3+ {[%clk 0:48:36]} 20. Qxf3 {[%clk 1:12:23]} 20... Bxb2
{[%clk 0:49:02]} 21. Rc2 {[%clk 1:12:35]} 21... Be5 {[%clk 0:48:17]} 22. h4
{[%clk 1:06:50]} 22... Ba4 {[%clk 0:42:34]} 23. Rdc1 {[%clk 1:04:23]} 23... f6
{[%clk 0:37:35]} 24. gxf6 {[%clk 1:02:49]} 24... Bxf6 {[%clk 0:37:04]} 25. g5
{[%clk 1:01:36]} 25... Be5 {[%clk 0:35:32]} 26. Qg4 {[%clk 1:01:14]} 26... Bd7
{[%clk 0:34:20]} 27. g6 {[%clk 0:57:41]} 27... Nf4 {[%clk 0:33:49]} 28. Qd1
{[%clk 0:55:57]} 28... Nxg6 {[%clk 0:33:10]} 29. Bg5 {[%clk 0:55:21]} 29... Kh8
{[%clk 0:28:57]} 30. h5 {[%clk 0:53:12]} 30... Nf4 {[%clk 0:27:39]} 31. Nxf4
{[%clk 0:46:38]} 31... Bxf4 {[%clk 0:27:56]} 32. Bxf4 {[%clk 0:47:01]} 32...
Rxf4 {[%clk 0:28:21]} 33. Rg2 {[%clk 0:45:40]} 33... Rxe4 {[%clk 0:24:53]} 34.
Qf3 {[%clk 0:41:46]} 34... Re5 {[%clk 0:23:05]} 35. Qg3 {[%clk 0:38:27]} 35...
Qg8 {[%clk 0:22:52]} 36. Qc3 {[%clk 0:37:24]} 36... Qf7 {[%clk 0:19:57]} 37. Nd4
{[%clk 0:35:12]} 37... Rf8 {[%clk 0:13:30]} 38. h6 {[%clk 0:32:59]} 38... Qf4
{[%clk 0:13:16]} 39. Rcc2 {[%clk 0:30:40]} 39... Qf1+ {[%clk 0:13:28]} 40. Kh2
{[%clk 0:30:56]} 40... Rh5+ {[%clk 0:13:52]} 41. Kg3 {[%clk 0:31:12]} 41... Rg8#
{[%clk 0:14:16]} 0-1

[Variant "Standard"]
[Site "Europe Echecs"]

[Event "Championnat du monde jeunes U10"]
[Date "2024.11.15"]
[White "Fuentes de Nova, Sebastian"]
[Black "Tugsbilguun, Davganamdag"]
[WhiteElo "1929"]
[BlackElo "1660"]
[Round "1.23"]
[Result "1-0"]
[TimeControl "5400+30"]

1. d4 {[%clk 1:30:30]} 1... e6 {[%clk 1:30:37]} 2. e4 {[%clk 1:30:51]} 2... d5
{[%clk 1:30:59]} 3. Nc3 {[%clk 1:31:09]} 3... Nf6 {[%clk 1:31:22]} 4. Bg5 {[%clk
1:31:27]} 4... h6 {[%clk 1:31:38]} 5. Bxf6 {[%clk 1:31:38]} 5... Qxf6 {[%clk
1:31:45]} 6. exd5 {[%clk 1:31:48]} 6... Bb4 {[%clk 1:31:30]} 7. dxe6 {[%clk
1:31:44]} 7... Bxe6 {[%clk 1:31:49]} 8. Nf3 {[%clk 1:31:51]} 8... c5 {[%clk
1:30:51]} 9. Qd2 {[%clk 1:26:35]} 9... Nc6 {[%clk 1:27:57]} 10. dxc5 {[%clk
1:25:03]} 10... O-O {[%clk 1:25:18]} 11. Bd3 {[%clk 1:25:02]} 11... Bd5 {[%clk
1:23:56]} 12. O-O-O {[%clk 1:23:38]} 12... Bxa2 {[%clk 1:18:24]} 13. Rhe1 {[%clk
1:19:58]} 13... Rad8 {[%clk 1:17:20]} 14. Qe3 {[%clk 1:19:22]} 14... Bxc3 {[%clk
1:07:13]} 15. bxc3 {[%clk 1:19:30]} 15... Bd5 {[%clk 1:07:23]} 16. Kb1 {[%clk
1:07:31]} 16... Kh8 {[%clk 1:00:12]} 17. Bb5 {[%clk 0:53:15]} 17... b6 {[%clk
0:56:22]} 18. c4 {[%clk 0:51:57]} 18... Bxf3 {[%clk 0:55:07]} 19. Qxf3 {[%clk
0:50:55]} 19... Qxf3 {[%clk 0:52:59]} 20. gxf3 {[%clk 0:50:53]} 20... Nd4 {[%clk
0:52:31]} 21. c6 {[%clk 0:50:06]} 21... a6 {[%clk 0:48:51]} 22. c7 {[%clk
0:48:29]} 22... Rc8 {[%clk 0:44:08]} 23. Bxa6 {[%clk 0:47:48]} 23... Rxc7 {[%clk
0:43:09]} 24. Rxd4 {[%clk 0:47:44]} 24... Kh7 {[%clk 0:43:18]} 25. Bb5 {[%clk
0:47:54]} 25... Ra8 {[%clk 0:43:37]} 26. Rd7 {[%clk 0:48:06]} 26... Rc5 {[%clk
0:43:51]} 27. Rxf7 {[%clk 0:48:27]} 27... Rg5 {[%clk 0:43:39]} 28. f4 {[%clk
0:48:33]} 28... Rg4 {[%clk 0:43:26]} 29. Bd7 {[%clk 0:48:22]} 29... Rg2 {[%clk
0:42:47]} 30. Bc6 {[%clk 0:48:43]} 1-0

[Variant "Standard"]
[Site "Europe Echecs"]

[Event "Championnat du monde jeunes U10"]
[Date "2024.11.15"]
[White "Popov, Aleksandr And"]
[Black "Andre, Tomas"]
[WhiteElo "1651"]
[BlackElo "1928"]
[Round "1.24"]
[Result "0-1"]
[TimeControl "5400+30"]

1. e4 {[%clk 1:30:58]} 1... c5 {[%clk 1:30:16]} 2. c3 {[%clk 1:31:27]} 2... Nf6
{[%clk 1:30:35]} 3. e5 {[%clk 1:31:50]} 3... Nd5 {[%clk 1:31:03]} 4. Bc4 {[%clk
1:32:09]} 4... Nb6 {[%clk 1:31:19]} 5. Bb3 {[%clk 1:32:33]} 5... c4 {[%clk
1:31:35]} 6. Bc2 {[%clk 1:32:59]} 6... d6 {[%clk 1:31:07]} 7. exd6 {[%clk
1:30:59]} 7... Qxd6 {[%clk 1:31:23]} 8. Nf3 {[%clk 1:29:04]} 8... Nc6 {[%clk
1:31:12]} 9. O-O {[%clk 1:27:36]} 9... Bg4 {[%clk 1:31:09]} 10. b3 {[%clk
1:25:56]} 10... Ne5 {[%clk 1:30:30]} 11. Be4 {[%clk 1:23:11]} 11... f5 {[%clk
1:28:07]} 12. Bxb7 {[%clk 1:17:32]} 12... Rb8 {[%clk 1:24:58]} 13. Nxe5 {[%clk
1:16:34]} 13... Qxe5 {[%clk 1:22:47]} 14. Bf3 {[%clk 1:16:53]} 14... Bxf3 {[%clk
1:13:08]} 15. Qxf3 {[%clk 1:17:14]} 15... e6 {[%clk 1:12:23]} 16. Qc6+ {[%clk
1:11:03]} 16... Kf7 {[%clk 1:11:46]} 17. bxc4 {[%clk 1:04:02]} 17... Bd6 {[%clk
1:06:05]} 18. f4 {[%clk 1:01:50]} 18... Bc5+ {[%clk 1:06:05]} 19. Kh1 {[%clk
0:57:44]} 19... Qe2 {[%clk 1:06:21]} 20. Qf3 {[%clk 0:57:27]} 20... Qxc4 {[%clk
1:05:26]} 21. d4 {[%clk 0:47:20]} 21... Bd6 {[%clk 1:04:17]} 22. Nd2 {[%clk
0:41:27]} 22... Qc7 {[%clk 1:02:35]} 23. Nb3 {[%clk 0:32:02]} 23... Rhc8 {[%clk
1:00:55]} 24. Bd2 {[%clk 0:29:36]} 24... Nd5 {[%clk 0:59:39]} 25. Rac1 {[%clk
0:27:57]} 25... Ba3 {[%clk 0:58:23]} 26. Rce1 {[%clk 0:23:48]} 26... g6 {[%clk
0:57:19]} 27. Qe2 {[%clk 0:21:21]} 27... Rb6 {[%clk 0:56:38]} 28. Rf3 {[%clk
0:16:14]} 28... Qc4 {[%clk 0:52:45]} 29. Qxc4 {[%clk 0:15:54]} 29... Rxc4 {[%clk
0:53:13]} 30. Na5 {[%clk 0:14:33]} 30... Ra4 {[%clk 0:53:32]} 31. c4 {[%clk
0:13:37]} 31... Bb4 {[%clk 0:48:26]} 32. c5 {[%clk 0:09:19]} 32... Bxd2 {[%clk
0:47:04]} 33. cxb6 {[%clk 0:09:35]} 33... axb6 {[%clk 0:47:11]} 34. Rd1 {[%clk
0:08:03]} 34... Bxa5 {[%clk 0:47:13]} 35. Rh3 {[%clk 0:07:10]} 35... h5 {[%clk
0:46:55]} 36. Rf3 {[%clk 0:07:20]} 36... Rxa2 {[%clk 0:47:11]} 37. g3 {[%clk
0:07:20]} 37... Bc3 {[%clk 0:46:36]} 38. Rdd3 {[%clk 0:07:08]} 38... Rc2 {[%clk
0:46:47]} 39. Rf1 {[%clk 0:06:09]} 39... b5 {[%clk 0:46:58]} 40. Rb1 {[%clk
0:06:28]} 40... b4 {[%clk 0:47:16]} 41. Rb3 {[%clk 0:06:21]} 41... Ke7 {[%clk
0:47:17]} 42. Rd1 {[%clk 0:06:10]} 42... Kd6 {[%clk 0:47:15]} 43. Rdb1 {[%clk
0:06:31]} 43... Bxd4 {[%clk 0:47:28]} 44. Rxb4 {[%clk 0:06:48]} 44... Nxb4
{[%clk 0:47:40]} 45. Rxb4 {[%clk 0:07:14]} 45... Be3 {[%clk 0:46:54]} 46. Rb3
{[%clk 0:07:12]} 46... Bd4 {[%clk 0:46:54]} 47. Rb1 {[%clk 0:06:57]} 47... h4
{[%clk 0:47:02]} 48. gxh4 {[%clk 0:03:24]} 48... Be3 {[%clk 0:47:23]} 49. Rd1+
{[%clk 0:03:44]} 49... Kc5 {[%clk 0:47:51]} 50. Re1 {[%clk 0:02:48]} 50... Rc1
{[%clk 0:48:09]} 51. Rxc1+ {[%clk 0:02:59]} 51... Bxc1 {[%clk 0:48:37]} 52. Kg2
{[%clk 0:03:22]} 52... Bxf4 {[%clk 0:48:59]} 53. h3 {[%clk 0:03:42]} 53... e5
{[%clk 0:49:26]} 54. Kf3 {[%clk 0:03:46]} 54... Kd4 {[%clk 0:49:50]} 55. h5
{[%clk 0:04:05]} 55... gxh5 {[%clk 0:50:12]} 56. h4 {[%clk 0:04:31]} 56... Kd3
{[%clk 0:50:27]} 57. Kg2 {[%clk 0:04:56]} 57... e4 {[%clk 0:50:47]} 58. Kf2
{[%clk 0:05:20]} 58... e3+ {[%clk 0:51:05]} 59. Ke1 {[%clk 0:05:42]} 59... Bg3+
{[%clk 0:51:04]} 60. Kf1 {[%clk 0:06:00]} 60... e2+ {[%clk 0:51:24]} 61. Kg2
{[%clk 0:06:28]} 61... e1=Q {[%clk 0:51:02]} 62. Kh3 {[%clk 0:06:42]} 62... f4
{[%clk 0:51:06]} 63. Kg2 {[%clk 0:07:06]} 63... f3+ {[%clk 0:51:16]} 64. Kxf3
{[%clk 0:07:09]} 64... Qf2# {[%clk 0:51:38]} 0-1

[Variant "Standard"]
[Site "Europe Echecs"]